Cogmind - Beta 13 @@@ ROGUE MODE // 2024.04.17 @ 22:14:36 Player: ToasterKoishi Result: Destroyed by 8R-AWN with 8R-AWN's Boregun Performance ------------- Evolutions (0) 0 Regions Visited (3) 600 Robots Destroyed (17) 85 Value Destroyed (519) 519 Prototype IDs (0) 0 Alien Tech Used (0) 0 Bonus (0) 0 TOTAL SCORE: 1204 Bonus ------- None Cogmind --------- Core Integrity 0/250 Matter 296/300 Energy 250/250 System Corruption 2% Temperature Cool (0) Movement Rolling (175) Ox5 Location -10/Exiles Parts ------- > --- POWER (1) -------- Ion Engine > --- PROPULSION (2) --- Light Treads Compact Wheel > --- UTILITY (2) ------ Huge Storage Unit Signal Interpreter > --- WEAPON (2) ------- Autogun Autogun > --- INVENTORY (25) --- Ion Engine Ion Engine Aluminum Leg Wheel Large Storage Unit High-capacity Matter Pod (200) Signal Interpreter Terrain Scanner Terrain Scanner Improved Terrain Scanner Terrain Scan Processor Seismic Detector Propulsion Shielding Propulsion Shielding Propulsion Shielding Propulsion Shielding Light Armor Plating Light Armor Plating Light Armor Plating Light Armor Plating Autogun Autogun Grenade Launcher Grenade Launcher Rocket Launcher Peak State ------------ > --- POWER ------------ Ion Engine > --- PROPULSION ------- Light Treads Compact Wheel > --- UTILITY ---------- Huge Storage Unit Signal Interpreter > --- WEAPON ----------- Autogun Autogun > --- INVENTORY -------- Ion Engine Ion Engine Aluminum Leg Aluminum Leg Wheel Wheel Large Storage Unit High-capacity Matter Pod Signal Interpreter Terrain Scanner Terrain Scanner Improved Terrain Scanner Terrain Scan Processor Propulsion Shielding Propulsion Shielding Propulsion Shielding Propulsion Shielding Light Armor Plating Light Armor Plating Light Armor Plating Light Armor Plating Autogun Autogun Grenade Launcher Grenade Launcher [Rating: 12] Favorites ----------- Power Ion Engine Engine Ion Engine Propulsion Light Treads Treads Light Treads Wheel Wheel Utility Signal Interpreter Storage Huge Storage Unit Processor Signal Interpreter Weapon Autogun Energy Gun Medium Laser Ballistic Gun Autogun Special Weapon Welding Torch Build | -11 -10 -10 -10 ------- Run | Yrd Mat Min Exi Slots Evolved . | . . . . Power . | . . . . Propulsion . | . . . . Utility . | . . . . Weapon . | . . . . Parts Attached 19 | 6 10 3 . Power 4 | 1 3 . . Engine 4 | 1 3 . . Core . | . . . . Reactor . | . . . . Propulsion 4 | 2 1 1 . Treads 2 | 1 1 . . Leg . | . . . . Wheel 2 | 1 . 1 . Hover . | . . . . Flight . | . . . . Utility 4 | 1 3 . . Device . | . . . . Storage 3 | 1 2 . . Processor 1 | . 1 . . Hackware . | . . . . Protection . | . . . . Artifact . | . . . . Weapon 7 | 2 3 2 . Energy Gun 1 | 1 . . . Energy Cannon . | . . . . Ballistic Gun 5 | 1 3 1 . Ballistic Cannon . | . . . . Launcher . | . . . . Special Weapon 1 | . . 1 . Impact Weapon . | . . . . Slashing Weapon . | . . . . Piercing Weapon . | . . . . Special Melee Weapon . | . . . . Unidentified Prototypes . | . . . . Parts Lost 1 | . . 1 . Power . | . . . . Propulsion 1 | . . 1 . Utility . | . . . . Weapon . | . . . . Highest Loss Streak 1 | . . 1 . To Critical Strikes . | . . . . Average Slot Usage (%) 99 | . 99 99 100 Engine 14 | . 14 14 14 Treads 14 | . 14 14 14 Wheel 14 | . 14 14 14 Storage 14 | . 14 14 14 Processor 13 | . 13 14 14 Energy Gun 2 | . 4 . . Ballistic Gun 25 | . 23 27 28 Naked Turns . | . . . . Heaviest Build 91 | 14 91 91 91 Greatest Support 20 | 10 20 16 16 Greatest Overweight (x) 9 | 3 9 9 5 Average Overweight (x) 5 | 1 4 6 5 Largest Inventory Capacity 25 | 8 25 25 25 Average Capacity 21 | 7 19 25 25 Most Carried 25 | 5 22 25 25 Average Carried 19 | 1 16 22 25 Final Capacity 25 | 8 25 25 25 Final Carried 25 | 5 22 25 25 Class Distribution -------------------- 100% | Mutant Dominant Class ---------------- Mutant | -10/Materials Mutant | -10/Mines Mutant | -10/Exiles Resources | -11 -10 -10 -10 ----------- Run | Yrd Mat Min Exi Matter Collected 1137 | 216 405 516 . Remotely . | . . . . Salvage Created 676 | . 615 61 . Parts 34 | . 34 . . Haulers Intercepted . | . . . . Recyclers Shooed 1 | . 1 . . Parts Field Recycled . | . . . . Retrieved Matter . | . . . . Parts Self-Destructed . | . . . . Prevented . | . . . . Kills | -11 -10 -10 -10 ------- Run | Yrd Mat Min Exi Combat Hostiles Destroyed 21 | . 17 4 . Guns 21 | . 17 4 . Classes Destroyed 3 | . 2 1 . Swarmer 3 | . 3 . . Grunt 14 | . 14 . . Assembled 4 | . . 4 . Best Kill Streak 3 | . 3 1 . Combat Bots Only 3 | . 3 1 . Max Kills in Single Turn 1 | . 1 1 . Gunslinging . | . . . . Exploded . | . . . . Melee . | . . . . Uniques/NPCs Destroyed . | . . . . Combat | -11 -10 -10 -10 -------- Run | Yrd Mat Min Exi Hostile Shots Fired 56 | . 46 8 2 Missed 10 | . 8 2 . Damage Taken 670 | . 452 128 90 Core 258 | . 151 29 78 Absorbed by Shields . | . . . . Core Remaining (%) 100 | 100 . . . Volleys Fired 56 | . 43 13 . Largest 2 | . 2 2 . Hottest 70 | . 70 46 . Shots Fired 113 | . 86 26 1 Gun 113 | . 86 26 1 Cannon . | . . . . Launcher . | . . . . Special . | . . . . Kinetic 96 | . 69 26 1 Thermal 17 | . 17 . . Explosive . | . . . . Electromagnetic . | . . . . Robot Hit Streak 15 | . 15 5 . Robot Miss Streak 3 | . 3 3 1 Penetration Max . | . . . . Secondary Targets . | . . . . Shots Hit Robots 71 | . 59 12 . Core Hits 35 | . 29 6 . Critical Kills . | . . . . Critical Parts Destroyed . | . . . . Critical Strikes 1 | . 1 . . Burn 1 | . 1 . . Melee Attacks . | . . . . Impact . | . . . . Slashing . | . . . . Piercing . | . . . . Sneak Attacks . | . . . . Combat Hostiles . | . . . . Follow-up Attacks . | . . . . Damage Inflicted 1049 | . 859 190 . Guns 1049 | . 859 190 . Cannons . | . . . . Explosions . | . . . . Melee . | . . . . Ramming . | . . . . Kinetic 911 | . 721 190 . Thermal 138 | . 138 . . Explosive . | . . . . Electromagnetic . | . . . . Impact . | . . . . Slashing . | . . . . Piercing . | . . . . Highest Corruption 2 | . 2 2 2 Average Corruption 1 | . 1 2 2 Corruption Purged . | . . . . Corruption Blocked . | . . . . Effects 22 | . 4 16 2 Message Errors 5 | . 2 3 . Matter Fused 6 | . 2 4 . Heat Flow Errors 2 | . . 2 . Energy Discharges 1 | . . 1 . Data Loss (minor) 5 | . . 4 1 Data Loss (major) 2 | . . 2 . Misfires 1 | . . . 1 Overload Shots . | . . . . Overflow Damage . | . . . . Projectiles . | . . . . Explosions . | . . . . Melee . | . . . . Knockbacks . | . . . . Impact . | . . . . Kinetic . | . . . . Secondary . | . . . . Self-Inflicted Damage . | . . . . Shots . | . . . . Rammed . | . . . . Targets Rammed . | . . . . Kicked . | . . . . Crushed . | . . . . Highest Temperature 205 | . 89 205 15 Average Temperature 25 | . 21 37 15 Received Heat Transfer 231 | . 231 . . Siege Activations . | . . . . Robots Corrupted . | . . . . Combat Hostiles . | . . . . Parts Fried . | . . . . Impact Corruptions . | . . . . Robots Melted . | . . . . Combat Hostiles . | . . . . Parts Melted . | . . . . Heat Transferred 481 | . 481 . . Parts Sabotaged . | . . . . Parts Stolen . | . . . . Parts Stripped . | . . . . Power Chain Reactions . | . . . . Alert | -11 -10 -10 -10 ------- Run | Yrd Mat Min Exi Peak Influence 253 | . 253 59 . Initial 59 | . . 59 . Average 75 | . 130 22 . Maximum Alert Level 1 | . 1 . . Low Security (%) 90 | 100 81 100 . Level 1 9 | . 18 . . Level 2 . | . . . . Level 3 . | . . . . Level 4 . | . . . . Level 5 . | . . . . High Security . | . . . . Max Security . | . . . . Squads Dispatched 5 | . 5 . . Investigation 2 | . 2 . . Extermination . | . . . . Reinforcement 3 | . 3 . . Assault . | . . . . Garrison . | . . . . Intercept . | . . . . Searches Triggered . | . . . . Construction Impeded . | . . . . Haulers Reinforced . | . . . . Active Scanning Responses . | . . . . Cargo Convoy Interrupts . | . . . . Stealth | -11 -10 -10 -10 --------- Run | Yrd Mat Min Exi Distress Signals 2 | . 2 . . Communications Jammed . | . . . . Distress Signals . | . . . . Times Spotted 31 | . 26 4 1 Peak Tracking Total 9 | . 5 1 9 Tactical Retreats 1 | . 1 . . Traps | -11 -10 -10 -10 ------- Run | Yrd Mat Min Exi Traps Triggered 5 | . 5 . . Indirectly . | . . . . Trap Hack Attempts . | . . . . Triggered . | . . . . Disarmed . | . . . . Reprogrammed . | . . . . Reused . | . . . . Traps Extracted . | . . . . Installed . | . . . . Triggered . | . . . . Machines | -11 -10 -10 -10 ---------- Run | Yrd Mat Min Exi Machines Disabled 1 | . . . 1 Max in Single Turn 1 | . . . 1 Machines Repaired . | . . . . Machines Dismantled . | . . . . Machines Sabotaged . | . . . . Overloaded Fab Kills . | . . . . Hacking | -11 -10 -10 -10 --------- Run | Yrd Mat Min Exi Machines Accessed 1 | . 1 . . Terminals 1 | . 1 . . Fabricators . | . . . . Repair Stations . | . . . . Recycling Units . | . . . . Scanalyzers . | . . . . Garrison Access . | . . . . Total Hacks 1 | . 1 . . Successful 1 | . 1 . . Failed . | . . . . Catastrophic . | . . . . Database Lockouts . | . . . . Manual . | . . . . Terminals 1 | . 1 . . Fabricators . | . . . . Repair Stations . | . . . . Recycling Units . | . . . . Scanalyzers . | . . . . Garrison Access . | . . . . Terminal Hacks 1 | . 1 . . Registered Components 1 | . 1 . . Fabricator Hacks . | . . . . Repair Station Hacks . | . . . . Recycling Unit Hacks . | . . . . Scanalyzer . | . . . . Garrison Access Hacks . | . . . . Unauthorized Hacks . | . . . . Terminals . | . . . . Fabricators . | . . . . Repair Stations . | . . . . Recycling Units . | . . . . Scanalyzers . | . . . . Garrison Access . | . . . . Data Cores Recovered . | . . . . Used . | . . . . Hacking Detections . | . . . . Full Trace Events . | . . . . Feedback Events . | . . . . Feedback Blocked . | . . . . Robot Schematics Acquired . | . . . . Robots Built . | . . . . Authchips . | . . . . Time . | . . . . Total Robot Build Rating . | . . . . Part Schematics Acquired . | . . . . Parts Built . | . . . . Authchips . | . . . . Time . | . . . . Total Part Build Rating . | . . . . Parts Repaired . | . . . . Time . | . . . . Parts Recycled . | . . . . Recycled Matter . | . . . . Retrieved Matter . | . . . . Retrieved Components . | . . . . Parts Scanalyzed . | . . . . Part Schematics Acquired . | . . . . Parts Damaged . | . . . . Bothacking | -11 -10 -10 -10 ------------ Run | Yrd Mat Min Exi Used RIF Installer . | . . . . Robots Hacked . | . . . . Non-combat . | . . . . Combat . | . . . . Robot Hacks Applied . | . . . . Relay Couplers Released . | . . . . Fabnet Peak Effective % . | . . . . Robots Rewired . | . . . . Allies Hacked . | . . . . Hacks Repelled . | . . . . Allies | -11 -10 -10 -10 -------- Run | Yrd Mat Min Exi Total Allies . | . . . . Largest Group . | . . . . Highest-Rated Group . | . . . . Highest-Rated Ally . | . . . . Total Orders . | . . . . Ally Attacks . | . . . . Total Damage . | . . . . Kills . | . . . . Allies Corrupted . | . . . . Allies Melted . | . . . . Intel | -11 -10 -10 -10 ------- Run | Yrd Mat Min Exi Robot Analysis Total . | . . . . Derelict Logs Recovered 2 | . . 2 . Drone Launches . | . . . . Drone Recoveries . | . . . . Exploration | -11 -10 -10 -10 ------------- Run | Yrd Mat Min Exi Turns Passed 2242 | 66 1090 1036 50 Spaces Moved 1144 | 49 570 496 29 Core 14 | 14 . . . Treads 1 | . 1 . . Legs . | . . . . Wheels 1129 | 35 569 496 29 Hover . | . . . . Flight . | . . . . Fastest Speed 50 | 50 95 175 175 Average Speed 165 | 106 148 188 175 Slowest Speed 240 | 200 240 215 175 Overloaded Moves . | . . . . Propulsion Burnouts . | . . . . Robots Hopped . | . . . . Cave-ins Triggered . | . . . . Exploration Rate (%) 51 | 3 95 98 9 Regions Visited 3 Branch Regions 2 Pre-discovered Areas . | . . . . Known Exits Taken 2 | . 1 1 . Unknown Exits Taken 1 | 1 . . . Scrap Searched 1 | . . 1 . Spaces Dug . | . . . . Terrain Destroyed . | . . . . Melee . | . . . . Projectile . | . . . . AOE . | . . . . Terrain Rammed . | . . . . Walls Destroyed . | . . . . Machines Disabled . | . . . . Actions | -11 -10 -10 -10 --------- Run | Yrd Mat Min Exi Total 1405 | 59 740 577 29 Wait 143 | . 91 52 . Move 1141 | 48 569 495 29 Hop . | . . . . Pick Up 31 | 5 18 8 . Fast Attach 11 | 6 3 2 . Attach 1 | . . 1 . Detach . | . . . . Swap 7 | . 7 . . Drop 15 | . 9 6 . Fire 56 | . 43 13 . Melee . | . . . . Ram . | . . . . Kick . | . . . . Crush . | . . . . Escape Stasis . | . . . . Rewire . | . . . . Trap . | . . . . Miscellaneous . | . . . . Route ------- -11/Scrapyard -10/Materials (discovered 4 exits: *Mat x3 / *Min) -10/Mines (discovered 3 exits: *Mat x2 / *Exi) -10/Exiles (discovered 1 exit: [*Min]) History --------- Turn | Location | Event 10 | -11/Scrapyard | Discovered new exit (range 15) 67 | -11/Scrapyard | Entered Materials 195 | -10/Materials | Discovered new exit (range 4) 313 | -10/Materials | Build established: Mutant 474 | -10/Materials | Discovered new exit (range 8) 486 | -10/Materials | Identified exit to Materials 785 | -10/Materials | Discovered exit to Materials (range 8) 889 | -10/Materials | Discovered new exit (range 9) 910 | -10/Materials | Core integrity fell below 50% 1155 | -10/Materials | Identified exit to Mines 1157 | -10/Materials | Entered Mines 1161 | -10/Mines | Assembled infested the area 1343 | -10/Mines | Learned Materials stockpile data 1371 | -10/Mines | Discovered exit to Materials (range 11) 2018 | -10/Mines | Received a Rocket Launcher from a helpful Derelict 2186 | -10/Mines | Deemed a non-threat by the Exiles lab entrance 2186 | -10/Mines | Discovered new exit (range 5) 2191 | -10/Mines | Identified exit to Exiles 2193 | -10/Mines | Entered Exiles 2216 | -10/Exiles | Discovered new exit (range 15) 2237 | -10/Exiles | Attacked by the Exiles 2238 | -10/Exiles | Core integrity fell below 20% 2243 | -10/Exiles | Destroyed by 8R-AWN with 8R-AWN's Boregun Last Messages --------------- 02104_ Acquired 20 matter. 02107_ K-01 Serf collects debris. 02112_ System corrupted: Component data lost. 02118_ K-01 Serf collects debris. 02186_ "No threat detected, you may enter." 02186_ EXIT=FOUND 02191_ EXIT=IDENTIFIED: EXILES LOCATION=EXILES GOAL=ESCAPE 02208_ System corrupted: Component data lost. 02216_ EXIT=FOUND 02237_ System corrupted: FCS attempts to trigger Autogun. 02237_ System corrupted: Autogun misfires. 02237_ EXILES: Hostile robot within lab perimeter. Defensive protocols time, folks! 02237_ Machine disabled. 02237_ Rigged Rnf. Deuterium Engine explodes. 02243_ Penetrated by HV Slug. 02243_ HV Slug penetrates Wall. 02243_ Penetrated by HV Slug. Map ----- +----------------------------------------------------+ | ?????????????????????????????????????????????????? | | ?????????????????????????????????????????????????? | | ?????????????????????????????????????????????????? | | ?????????????????????????????????????????????????? | | ?????????????????????????????????????????????????? | | ?????????????????????????????????????????????????? | | ?????????????????????????????????????????????????? | | ?????????????????????????????????????????????????? | | ?????????????????????????????????????????????????? | | ?????????????????????????????????????????????????? | | ?????????????????????????????????????????????????? | | ??????????????????????????????????? ?????????????? | | ?????????????????????????????????? < #??????????? | | ?????????????????????????????????? #??????????? | | ?????????????????????????????????? ???????????? | | ?????????????????????????????????# #???????????? | | ???????????????????????????????## ##??????????? | | ???????????????????????????????# #??????????? | | ???????????????????????????????# #??????????? | | ??????????##??????????????????## ???????????? | | ??????????#" ???????????????## #????????????? | | ?????????##" ??????????????# #????????????? | | ???????### #??#######?### #?????????????? | | ???????# ?#;;;;;### #?????????????? | | ???????# # ;# #??????????????? | | ??????# g @ * ##?????????????? | | ?????????????# #?????????????? | | ?????????????## ##????????????? | | ?????????????#"""""#### ###??????????? | | ?????????????#####????#### * ###????????? | | ?????????????????????????##### ##???????? | | ?????????????????????????????### #???????? | | ???????????????????????????????### #???????? | | ?????????????????????????????????### #???????? | | ??????????????????????????????????#" ##??????? | | ??????????????????????????????????#### ###????? | | ?????????????????????????????????????# ##???? | | ?????????????????????????????????????## ###?? | | ??????????????????????????????????????### #?? | | ????????????????????????????????????????# ##?? | | ????????????????????????????????????????## ##??? | | ?????????????????????????????????????????#####???? | | ?????????????????????????????????????????????????? | | ?????????????????????????????????????????????????? | | ?????????????????????????????????????????????????? | | ?????????????????????????????????????????????????? | | ?????????????????????????????????????????????????? | | ?????????????????????????????????????????????????? | | ?????????????????????????????????????????????????? | | ?????????????????????????????????????????????????? | +----------------------------------------------------+ Best States ------------- Heat Dissipation 25 Energy Generation 10 Energy Capacity 250 Matter Stores 300 Matter Capacity 300 Sight Range 16 Terrain Scan Density 10 Evasion (%) 44 Recoil Reduction 1 Item Schematics ----------------- None Robot Schematics ------------------ None Fabricated ------------ Nothing Alien Tech Used ----------------- None Achievements -------------- None Challenges ------------ None Game ------ Seed FluxGuidanceSubcomponent Manual? 0 Play Time 00:11:50 Cumulative 64.1 hours Start 2024.04.17 @ 22:01:52 End 2024.04.17 @ 22:14:36 Sessions 1 Manual Loads 0 Difficulty Rogue Special Mode None Game No. 59 Rogue 59 Adventurer 0 Explorer 0 Win Type - Total 6 Types 5/0/1/0/0/0/0/0/0 Lore% 46 Gallery% 36 Achievement% 40 Wizard Run 0 Options --------- Layout 0 ASCII 0 Keyboard 1 Movement Vi Keybinds 0 Fullscreen 2 Font 16/SmallcapsGlow Map View 64x51 Zoom Use 0% Tactical HUD 1 Map Filters NONE Filters NONE Steam X RUN: 43ce7823-5956-4c62-8c05-c9ed9feb9424